fUSD/lending_fUSD_20240103
["ID","MTS","AMOUNT","RATE_DAILY","PERIOD"]
[310077906,1704304279390,-500.0,0.00033972,2]
[310077907,1704304279400,-500.0,0.00033972,2]
[310077908,1704304279558,-500.0,0.00033972,2]
[310077909,1704304279568,-419.25,0.00033972,2]
[310077910,1704304279578,-486.69,0.00033972,2]
[310077911,1704304279587,-500.0,0.00033972,2]
[310077912,1704304279597,-500.0,0.00033972,2]
[310077913,1704304279607,-500.0,0.00033972,2]
[310077914,1704304279616,-500.82,0.00033972,2]
[310077915,1704304279627,-500.0,0.00033972,2]
[310077916,1704304279637,-500.0,0.00033972,2]
[310077917,1704304279646,-242.34621723,0.00033972,2]
[310077918,1704304279656,-500.0,0.00033972,2]
[310077919,1704304279666,-500.0,0.00033972,2]
[310077920,1704304279679,-500.0,0.00033972,2]
[310077921,1704304279689,-446.54370145,0.00033972,2]
[310077922,1704304279698,-500.0,0.00033972,2]
[310077923,1704304279709,-500.0,0.00033972,2]
[310077924,1704304279720,-500.0,0.00033972,2]
[310077925,1704304279730,-500.0,0.00033972,2]
[310077926,1704304279740,-500.0,0.00033972,2]
[310077927,1704304279750,-500.0,0.00033972,2]
[310077928,1704304279761,-500.0,0.00033972,2]
[310077929,1704304279771,-500.0,0.00033972,2]
[310077930,1704304279781,-500.0,0.00033972,2]
[310077931,1704304279791,-500.0,0.00033972,2]
[310077932,1704304279801,-500.0,0.00033972,2]
[310077933,1704304279812,-500.0,0.00033972,2]
[310077934,1704304279821,-500.0,0.00033972,2]
[310077935,1704304279831,-500.0,0.00033972,2]
[310077936,1704304279842,-500.0,0.00033972,2]
[310077937,1704304279852,-500.0,0.00033972,2]
[310077938,1704304279862,-500.0,0.00033972,2]
[310077939,1704304279872,-500.0,0.00033972,2]
[310077940,1704304279882,-500.0,0.00033972,2]
[310077941,1704304279892,-500.0,0.00033972,2]
[310077942,1704304279902,-500.0,0.00033972,2]
[310077943,1704304279912,-500.0,0.00033972,2]
[310077944,1704304279921,-500.0,0.00033972,2]
[310077945,1704304279932,-500.0,0.00033972,2]
[310077946,1704304279942,-500.0,0.00033972,2]
[310077947,1704304279952,-500.0,0.00033972,2]
[310077948,1704304279963,-647.94015149,0.00033972,2]
[310077949,1704304279973,-500.0,0.00033972,2]
[310077950,1704304279982,-500.0,0.00033972,2]
[310077951,1704304279992,-500.0,0.00033972,2]
[310077952,1704304280002,-500.0,0.00033972,2]
[310077953,1704304280014,-520.28757214,0.00033972,2]
[310077954,1704304280025,-500.0,0.00033972,2]
[310077955,1704304280035,-500.0,0.00033972,2]
[310077956,1704304280046,-500.0,0.00033972,2]
[310077957,1704304280057,-500.0,0.00033972,2]
[310077958,1704304280067,-500.0,0.00033972,2]
[310077959,1704304280078,-500.0,0.00033972,2]
[310077960,1704304280088,-237.46214144,0.00033972,2]
[310077961,1704304280098,-502.31,0.00033972,2]
[310077962,1704304280109,-500.0,0.00033972,2]
[310077963,1704304280119,-540.15985749,0.00033972,2]
[310077964,1704304280130,-374.5,0.00033972,2]
[310077965,1704304280140,-500.0,0.00033972,2]
[310077966,1704304280150,-500.0,0.00033972,2]
[310077967,1704304280160,-500.0,0.00033972,2]
[310077968,1704304280170,-500.0,0.00033972,2]
[310077969,1704304280180,-280.76388987,0.00033972,2]
[310077970,1704304280189,-500.0,0.00033972,2]
[310077971,1704304280199,-500.0,0.00033972,2]
[310077972,1704304280209,-500.0,0.00033972,2]
[310077973,1704304280219,-500.0,0.00033972,2]
[310077974,1704304280229,-500.0,0.00033972,2]
[310077975,1704304280239,-500.0,0.00033972,2]
[310077976,1704304280249,-500.0,0.00033972,2]
[310077977,1704304280261,-475.89,0.00033972,2]
[310077978,1704304280272,-500.0,0.00033972,2]
[310077979,1704304280282,-500.0,0.00033972,2]
[310077980,1704304280292,-500.0,0.00033972,2]
[310077981,1704304280302,-500.0,0.00033972,2]
[310077982,1704304280312,-500.0,0.00033972,2]
[310077983,1704304280322,-500.0,0.00033972,2]
[310077984,1704304280333,-500.0,0.00033972,2]
[310077985,1704304280343,-500.0,0.00033972,2]
[310077986,1704304280354,-500.0,0.00033972,2]
[310077987,1704304280363,-203.9419643,0.00033972,2]
[310077988,1704304280374,-500.0,0.00033972,2]
[310077989,1704304280384,-500.0,0.00033972,2]
[310077990,1704304280395,-500.0,0.00033972,2]
[310077991,1704304280405,-500.0,0.00033972,2]
[310077992,1704304280416,-1571.49,0.00033972,2]
[310077993,1704304280427,-500.0,0.00033972,2]
[310077994,1704304280437,-500.0,0.00033972,2]
[310077995,1704304280449,-500.0,0.00033972,2]
[310077996,1704304280460,-1300.95,0.00033972,2]
[310077997,1704304280470,-500.0,0.00033972,2]
[310077998,1704304280481,-6232.64,0.00033972,2]
[310077999,1704304280492,-631.83,0.00033972,2]
[310078000,1704304280502,-500.0,0.00033972,2]
[310078001,1704304280515,-1106.1,0.00033972,2]
[310078002,1704304280527,-500.0,0.00033972,2]
[310078003,1704304280538,-449.21467546,0.00033972,2]
[310078004,1704304280549,-500.0,0.00033972,2]
[310078005,1704304280560,-500.0,0.00033972,2]
[310078006,1704304280571,-500.0,0.00033972,2]
[310078007,1704304280582,-500.0,0.00033972,2]
[310078008,1704304280593,-429.83816689,0.00033972,2]
[310078009,1704304280604,-500.0,0.00033972,2]
[310078010,1704304280615,-500.0,0.00033972,2]
[310078011,1704304280627,-500.0,0.00033972,2]
[310078012,1704304280638,-500.0,0.00033972,2]
[310078013,1704304280649,-500.0,0.00033972,2]
[310078014,1704304280660,-500.0,0.00033972,2]
[310078015,1704304280670,-2725.54,0.00033972,2]
[310078016,1704304280683,-500.0,0.00033972,2]
[310078017,1704304280693,-500.0,0.00033972,2]
[310078018,1704304280703,-500.0,0.00033972,2]
[310078019,1704304280714,-500.0,0.00033972,2]
[310078020,1704304280724,-500.0,0.00033972,2]
[310078021,1704304280736,-572.33222581,0.00033972,2]
[310078022,1704304280747,-500.0,0.00033972,2]
[310078023,1704304280760,-655.36,0.00033972,2]
[310078024,1704304280770,-500.0,0.00033972,2]
[310078025,1704304280782,-628.7,0.00033972,2]
[310078026,1704304280793,-500.0,0.00033972,2]
[310078027,1704304280804,-500.0,0.00033972,2]
[310078028,1704304280814,-500.0,0.00033972,2]
[310078029,1704304280825,-325.25381922,0.00033972,2]
[310078030,1704304280836,-500.0,0.00033972,2]
[310078031,1704304280846,-500.0,0.00033972,2]
[310078032,1704304280856,-603.13,0.00033972,2]
[310078033,1704304280866,-500.0,0.00033972,2]
[310078034,1704304280876,-500.0,0.00033972,2]
[310078035,1704304280887,-570.6,0.00033972,2]
[310078036,1704304280897,-500.0,0.00033972,2]
[310078037,1704304280908,-500.0,0.00033972,2]
[310078038,1704304280918,-2105.22,0.00033972,2]
[310078039,1704304280928,-264.91,0.00033972,2]
[310078040,1704304280939,-494.09620565,0.00033972,2]
[310078041,1704304280949,-500.0,0.00033972,2]
[310078042,1704304280960,-500.0,0.00033972,2]
[310078043,1704304280970,-500.0,0.00033972,2]
[310078044,1704304280981,-500.0,0.00033972,2]
[310078045,1704304280991,-500.0,0.00033972,2]
[310078046,1704304281001,-2338.64,0.00033972,2]
[310078047,1704304281014,-500.0,0.00033972,2]
[310078048,1704304281024,-1181.11,0.00033972,2]
[310078049,1704304281034,-500.0,0.00033972,2]
[310078050,1704304281044,-657.5,0.00033972,2]
[310078051,1704304281055,-1186.64,0.00033972,2]
[310078052,1704304281064,-500.0,0.00033972,2]
[310078053,1704304281074,-500.0,0.00033972,2]
[310078054,1704304281085,-411.18,0.00033972,2]
[310078055,1704304281095,-503.51,0.00033972,2]
[310078056,1704304281106,-3179.35,0.00033972,2]
[310078057,1704304281116,-500.0,0.00033972,2]
[310078058,1704304281127,-500.0,0.00033972,2]
[310078059,1704304281137,-554.34,0.00033972,2]
[310078060,1704304281148,-500.0,0.00033972,2]
[310078061,1704304281159,-602.91,0.00033972,2]
[310078062,1704304281169,-500.0,0.00033972,2]
[310078063,1704304281179,-209.04,0.00033972,2]
[310078064,1704304281190,-955.19,0.00033972,2]
[310078065,1704304281201,-11470.84,0.00033972,2]
[310078066,1704304281212,-500.0,0.00033972,2]
[310078067,1704304281222,-500.0,0.00033972,2]
[310078068,1704304281232,-500.0,0.00033972,2]
[310078069,1704304281242,-500.0,0.00033972,2]
[310078070,1704304281253,-500.0,0.00033972,2]
[310078071,1704304281266,-500.0,0.00033972,2]
[310078072,1704304281276,-500.0,0.00033972,2]
[310078073,1704304281286,-303.73471099,0.00033972,2]
[310078074,1704304281297,-500.0,0.00033972,2]
[310078075,1704304281307,-500.0,0.00033972,2]
[310078076,1704304281318,-712.58,0.00033972,2]
[310078077,1704304281329,-500.0,0.00033972,2]
[310078078,1704304281339,-500.0,0.00033972,2]
[310078079,1704304281350,-500.0,0.00033972,2]
[310078080,1704304281360,-509.61885055,0.00033972,2]
[310078081,1704304281370,-500.0,0.00033972,2]
[310078082,1704304281380,-500.0,0.00033972,2]
[310078083,1704304281391,-588.0,0.00033972,2]
[310078084,1704304281401,-439.56816085,0.00033972,2]
[310078085,1704304281410,-500.0,0.00033972,2]
[310078086,1704304281420,-500.0,0.00033972,2]
[310078087,1704304281429,-641.47,0.00033972,2]
[310078088,1704304281439,-500.0,0.00033972,2]
[310078089,1704304281450,-244.01349266,0.00033972,2]
[310078090,1704304281460,-500.0,0.00033972,2]
[310078091,1704304281471,-500.0,0.00033972,2]
[310078092,1704304281481,-553.74,0.00033972,2]
[310078093,1704304281492,-746.83,0.00033972,2]
[310078094,1704304281501,-500.0,0.00033972,2]
[310078095,1704304281514,-463.59,0.00033972,2]
[310078096,1704304281524,-500.0,0.00033972,2]
[310078097,1704304281534,-500.0,0.00033972,2]
[310078098,1704304281545,-500.0,0.00033972,2]
[310078099,1704304281555,-500.0,0.00033972,2]
[310078100,1704304281566,-500.0,0.00033972,2]
[310078101,1704304281576,-500.0,0.00033972,2]
[310078102,1704304281587,-198.92079887,0.00033972,2]
[310078103,1704304281597,-500.0,0.00033972,2]
[310078104,1704304281608,-500.0,0.00033972,2]
[310078105,1704304281618,-500.0,0.00033972,2]
[310078106,1704304281628,-500.0,0.00033972,2]
[310078107,1704304281638,-500.0,0.00033972,2]
[310078108,1704304281649,-3416.36,0.00033972,2]
[310078109,1704304281659,-726.00353855,0.00033972,2]
[310078110,1704304282239,-200.88646145,0.00033972,2]
[310078111,1704304282250,-1000.0,0.00033972,2]
[310078112,1704304282261,-500.0,0.00033972,2]
[310078113,1704304282271,-500.0,0.00033972,2]
[310078114,1704304282282,-500.0,0.00033972,2]
[310078115,1704304282292,-500.0,0.00033972,2]
[310078116,1704304282303,-400.31353855,0.00033972,2]
[310078117,1704304282315,-99.68646145,0.00033972,2]
[310078118,1704304282325,-585.41688328,0.00033972,2]
[310078119,1704304282335,-500.0,0.00033972,2]
[310078120,1704304282345,-500.0,0.00033972,2]
[310078121,1704304282356,-500.0,0.00033972,2]
[310078122,1704304282366,-500.0,0.00033972,2]
[310078123,1704304282376,-500.0,0.00033972,2]
[310078124,1704304282387,-630.73,0.00033972,2]
[310078125,1704304282397,-517.87918845,0.00033972,2]
[310078126,1704304282407,-250.15626444,0.00033972,2]
[310078127,1704304282419,-249.84373556,0.00033972,2]
[310078128,1704304282430,-370.31568151,0.00033972,2]
[310078129,1704304282442,-104.75016325,0.00033972,2]
[310078130,1704304282452,-210.44014602,0.00033972,2]
[310078131,1704304282799,-336.40953216,0.00032067,2]
[310078132,1704304282809,-1817.28275796,0.00032565,7]
[310078133,1704304282977,-609.29356238,0.00032565,7]
[310078134,1704304283105,-12654.13538729,0.00032565,7]
[310078135,1704304283304,-887.37733325,0.00032565,7]
[310078136,1704304283314,-2538.70740479,0.000327,2]
[310078137,1704304283338,-566.84976293,0.000327,2]
[310078138,1704304283369,-510.23572595,0.000327,2]
[310078139,1704304283381,-254.86173603,0.000327,2]
[310078140,1704304283393,-355.2,0.000327,2]
[310078141,1704304283405,-2069.16034058,0.000327,2]
[310078142,1704304283414,-336.40953216,0.000327,2]
[310078143,1704304283423,-6295.01497028,0.000327,2]
[310078144,1704304283433,-150.01,0.00032875,2]
[310078145,1704304283443,-3285.13803586,0.00032875,2]
[310078146,1704304283452,-500.0,0.00032876,2]
[310078147,1704304283462,-500.0,0.00032876,2]
[310078148,1704304283472,-500.0,0.00032876,2]
[310078149,1704304283482,-500.0,0.00032876,2]
[310078150,1704304283492,-500.0,0.00032876,2]
[310078151,1704304283501,-500.0,0.00032876,2]
[310078152,1704304283511,-500.0,0.00032876,2]
[310078153,1704304283520,-500.0,0.00032876,2]
[310078154,1704304283530,-585.24557783,0.00032876,2]
[310078155,1704304283539,-500.0,0.00032876,2]
[310078156,1704304283549,-500.0,0.00032876,2]
[310078157,1704304283558,-500.0,0.00032876,2]
[310078158,1704304283568,-500.0,0.00032876,2]
[310078159,1704304283577,-210.62890343,0.00032876,2]
[310078160,1704304286310,270378.09358293,0.00023,2]
[310078161,1704304419598,330.0,0.0002313,2]
[310078163,1704304433223,510503.94348558,0.00023,2]
[310078164,1704304433247,80000.0,0.00023,2]
[310078165,1704304433270,1317.45562416,0.00023,2]
[310078166,1704304433295,2696.0,0.00023,2]
[310078167,1704304433321,26773.92521091,0.00023,2]
[310078168,1704304433360,290.68715846,0.00023,2]
[310078169,1704304438616,330.0,0.00023,2]
[310078170,1704304450137,1323.459999,0.0002,2]
[310078171,1704304456323,2229.8573119,0.00022885,2]
[310078175,1704304478056,176.6549748,0.00023,2]
[310078176,1704304494045,176.6549748,0.00022885,2]
[310078177,1704304504587,530.91158742,0.00022885,2]
[310078178,1704304514042,164.7751114,0.00022885,2]
[310078179,1704304525619,500.0,0.00022999,4]
[310078180,1704304548233,155.0,0.00022885,2]
[310078181,1704304570218,254.2414545,0.00022885,2]
[310078182,1704304572639,8004.86514837,0.00022885,2]
[310078183,1704304580689,25492.98583389,0.00022885,2]
[310078184,1704304582589,531.1013635,0.00022885,2]
[310078185,1704304600583,531.1013635,0.00022885,2]
[310078186,1704304616589,178.97596344,0.00022885,2]
[310078187,1704304651585,337.25,0.00023,2]
[310078188,1704304719914,500.0,0.00022999,4]
[310078189,1704304881427,174.73,0.00022405,2]
[310078190,1704304897041,500.0,0.00022999,4]
[310078194,1704305075899,500.0,0.00022999,4]
[310078198,1704305216655,500.0,0.00022999,4]
[310078268,1704305380977,500.0,0.00022999,4]
[310078269,1704305391474,281.95610178,0.00022999,2]
[310078270,1704305396702,531.79797059,0.00022999,2]
[310078271,1704305399311,155.0,0.00022999,2]
[310078274,1704305407388,500.0,0.00022999,4]
[310078275,1704305407799,451.08551476,0.00022999,4]
[310078276,1704305409449,281.95610178,0.00022999,2]
[310078277,1704305414882,174.73,0.0002199,2]
[310078278,1704305425187,500.0,0.00022999,4]
[310078299,1704305432319,-179.4138,0.00025,2]
[310078300,1704305432329,-284.20505402,0.00025609,2]
[310078302,1704305432342,-215.79961479,0.00025609,2]
[310078303,1704305432351,-395.17,0.0002561,2]
[310078304,1704305432360,-599.279793,0.00026865,2]
[310078305,1704305432370,-373.51188536,0.00027,3]
[310078306,1704305432382,-876.48811464,0.00027,3]
[310078307,1704305432391,-155.1833018,0.0002744,2]
[310078308,1704305432403,-856.0,0.00027488,2]
[310078309,1704305432412,-6385.53,0.00027488,2]
[310078310,1704305432421,-8806.93,0.00027498,2]
[310078311,1704305432430,-251.54,0.00027506,2]
[310078312,1704305432440,-250.0,0.00027528,2]
[310078313,1704305432449,-200.0,0.00027534,2]
[310078314,1704305432459,-6328.18,0.0002754,2]
[310078315,1704305432471,-1200.35,0.00027548,2]
[310078316,1704305432480,-250.0,0.00027548,2]
[310078317,1704305432490,-150.0,0.00027553,2]
[310078318,1704305432499,-1764.75,0.00027562,2]
[310078319,1704305432509,-32642.5,0.00027562,2]
[310078320,1704305432518,-292.8,0.00027589,2]
[310078321,1704305432527,-646.47,0.0002776,2]
[310078322,1704305432538,-267.3,0.00027789,2]
[310078323,1704305432547,-150.0,0.00027797,2]
[310078324,1704305432557,-470.85,0.00027818,2]
[310078325,1704305432566,-2705.0,0.00027854,2]
[310078326,1704305432576,-500.0,0.00027861,2]
[310078327,1704305432585,-395.17,0.00027874,2]
[310078328,1704305432594,-470.85,0.00027894,2]
[310078329,1704305432603,-348.25,0.00027894,2]
[310078330,1704305432612,-1292.96,0.00027894,2]
[310078331,1704305432622,-180.0,0.00027913,2]
[310078332,1704305432632,-200.0,0.00027915,2]
[310078333,1704305432642,-4051.51,0.00027945,2]
[310078334,1704305432651,-470.85,0.0002797,2]
[310078335,1704305432661,-1371.26,0.00028018,2]
[310078336,1704305432670,-200.0,0.00028038,2]
[310078337,1704305432679,-470.85,0.00028047,2]
[310078338,1704305432688,-155.1833018,0.00028063,2]
[310078339,1704305432697,-470.85,0.00028123,2]
[310078341,1704305432709,-300.95,0.00028167,2]
[310078343,1704305432718,-470.85,0.00028199,2]
[310078345,1704305432728,-470.85,0.00028276,2]
[310078347,1704305432737,-470.85,0.00028352,2]
[310078349,1704305432747,-253.45,0.00028392,10]
[310078351,1704305432757,-211.2,0.00028392,10]
[310078353,1704305432767,-7920.42181449,0.00028402,2]
[310078356,1704305432785,-3293.1753049,0.00028402,2]
[310078358,1704305432797,-731.14561195,0.00028402,2]
[310078360,1704305432809,-309.36977282,0.00028402,2]
[310078362,1704305432821,-292.97642527,0.00028402,2]
[310078365,1704305432833,-628.5781616,0.00028402,2]
[310078366,1704305432846,-983.12918751,0.00028402,2]
[310078367,1704305432862,-4748.99759431,0.00028402,2]
[310078368,1704305432875,-1632.54787535,0.00028402,2]
[310078369,1704305432886,-371.55055673,0.00028402,2]
[310078370,1704305432897,-619.41901158,0.00028402,2]
[310078371,1704305432910,-521.69660047,0.00028402,2]
[310078372,1704305432925,-1601.32099312,0.00028402,2]
[310078373,1704305432966,-550.39902138,0.00028402,2]
[310078374,1704305432977,-1657.63766372,0.00028402,2]
[310078375,1704305432989,-536.4006231,0.00028402,2]
[310078376,1704305433001,-303.88,0.00028402,2]
[310078377,1704305433023,-4432.67636481,0.00028402,2]
[310078378,1704305433037,-4825.44124091,0.00028402,2]
[310078379,1704305433047,-1000.0,0.00028411,2]
[310078380,1704305433057,-533.07,0.00028412,2]
[310078381,1704305433066,-8045.75396268,0.00028412,2]
[310078382,1704305433078,-882.25603732,0.00028412,2]
[310078383,1704305433087,-470.85,0.00028428,2]
[310078384,1704305433096,-470.85,0.00028505,2]
[310078385,1704305433106,-470.85,0.00028581,2]
[310078386,1704305433116,-470.85,0.00028657,2]
[310078387,1704305433125,-155.1833018,0.00028687,2]
[310078388,1704305433135,-470.85,0.00028733,2]
[310078389,1704305433145,-267.3,0.00028768,2]
[310078390,1704305433154,-470.85,0.0002881,2]
[310078391,1704305433164,-470.85,0.00028886,2]
[310078392,1704305433173,-1650.74,0.00028919,2]
[310078393,1704305433183,-470.85,0.00028962,2]
[310078394,1704305433192,-193.49572145,0.00028984,2]
[310078395,1704305433203,-1300.0,0.00029,3]
[310078396,1704305433215,-470.85,0.00029039,2]
[310078397,1704305433225,-1876.9832,0.00029084,2]
[310078398,1704305433234,-42574.44,0.00029084,2]
[310078399,1704305433244,-521.69660047,0.00029104,4]
[310078400,1704305433254,-470.85,0.00029115,2]
[310078401,1704305433263,-150.99,0.00029184,2]
[310078402,1704305433272,-470.85,0.00029191,2]
[310078403,1704305433282,-470.85,0.00029268,2]
[310078404,1704305433291,-155.1833018,0.0002931,2]
[310078405,1704305433301,-193.49572145,0.00029315,2]
[310078406,1704305433311,-279.09870552,0.00029401,2]
[310078407,1704305433320,-2869.8311,0.000295,2]
[310078408,1704305433330,-202.31135748,0.00029543,2]
[310078409,1704305433340,-383.92115462,0.00029546,2]
[310078410,1704305433349,-137447.4312,0.000296,2]
[310078411,1704305433359,-193.49572145,0.00029646,2]
[310078412,1704305433368,-174.85,0.00029663,2]
[310078413,1704305433378,-3063.32189514,0.00029698,2]
[310078414,1704305433387,-1815.26,0.00029698,2]
[310078415,1704305433396,-335.43991817,0.00029699,2]
[310078416,1704305433405,-1800.2260153,0.00029699,2]
[310078417,1704305433414,-72398.35679174,0.000297,2]
[310078418,1704305433429,-61969.54478697,0.000297,2]
[310078419,1704305433441,-1881.09910861,0.000297,2]
[310078420,1704305433453,-1292.96276069,0.000297,2]
[310078427,1704305438319,-68.20405199,0.000297,2]
[310078429,1704305438328,-205.0,0.00029716,2]
[310078431,1704305438337,-41.8263946,0.00029746,2]
[310078432,1704305438509,-225.4736054,0.00029746,2]
[310078433,1704305438519,-174.85,0.00029819,2]
[310078434,1704305438528,-155.1833018,0.00029933,2]
[310078435,1704305438538,-174.85,0.00029975,2]
[310078436,1704305438548,-282.99299575,0.0003,6]
[310078437,1704305438558,-1000.0,0.0003,2]
[310078438,1704305438567,-155.0,0.0003,2]
[310078439,1704305438577,-2268.0,0.0003,2]
[310078440,1704305438587,-21745.29184326,0.0003,2]
[310078441,1704305438596,-330.0,0.0003,4]
[310078442,1704305438606,-174.85,0.00030132,2]
[310078443,1704305438616,-5510.79,0.00030137,2]
[310078444,1704305438626,-395.17,0.00030138,2]
[310078445,1704305438635,-174.85,0.00030288,2]
[310078446,1704305438645,-153.84,0.00030358,2]
[310078447,1704305438655,-174.85,0.00030444,2]
[310078448,1704305438664,-202.31135748,0.00030448,2]
[310078449,1704305438674,-155.1833018,0.00030557,2]
[310078450,1704305438683,-174.85,0.000306,2]
[310078451,1704305438693,-267.3,0.00030725,2]
[310078452,1704305438703,-174.85,0.00030756,2]
[310078453,1704305438712,-202.31135748,0.000309,2]
[310078454,1704305438722,-174.85,0.00030912,2]
[310078455,1704305438732,-856.0,0.00030923,2]
[310078456,1704305438742,-280.78867228,0.00031,14]
[310078457,1704305438752,-51983.32305951,0.00031,2]
[310078458,1704305438779,-2999.180821,0.00031,2]
[310078459,1704305438791,-283.191,0.00031,2]
[310078460,1704305438829,-1073.525,0.00031,2]
[310078461,1704305438845,-223660.78011949,0.00031,2]
[310078462,1704305438855,-1350.0,0.00031,3]
[310078463,1704305438865,-175.05,0.00031019,2]
[310078465,1704305438875,-174.85,0.00031068,2]
[310078467,1704305438884,-155.1833018,0.0003118,2]
[310078468,1704305438893,-174.85,0.00031224,2]
[310078470,1704305438902,-153.84,0.00031278,2]
[310078472,1704305438911,-174.85,0.0003138,2]
[310078474,1704305438921,-174.85,0.00031536,2]
[310078476,1704305438930,-174.85,0.00031693,2]
[310078479,1704305438940,-240.59656896,0.00031703,14]
[310078481,1704305438949,-267.3,0.00031703,2]
[310078483,1704305438959,-167.17197233,0.000318,14]
[310078484,1704305438969,-108839.65910894,0.000318,2]
[310078487,1704305438978,-190.24,0.000318,2]
[310078489,1704305438987,-155.1833018,0.00031803,2]
[310078491,1704305438996,-174.85,0.00031849,2]
[310078493,1704305439006,-174.85,0.00032005,2]
[310078495,1704305439015,-151.0,0.00032157,120]
[310078497,1704305439024,-174.85,0.00032161,2]
[310078498,1704305439034,-153.84,0.00032198,2]
[310078500,1704305439045,-205.0,0.0003224,6]
[310078501,1704305439054,-152.07802936,0.00032273,2]
[310078502,1704305439063,-174.85,0.00032317,2]
[310078503,1704305439073,-395.17,0.00032402,2]
[310078504,1704305439083,-155.1833018,0.00032427,2]
[310078505,1704305439092,-7500.0,0.00032463,2]
[310078506,1704305439101,-174.85,0.00032473,2]
[310078507,1704305439110,-5870.2045414,0.000325,2]
[310078508,1704305439120,-180.0,0.00032565,2]
[310078509,1704305439130,-7889.78155321,0.00032574,7]
[310078511,1704305439139,-7400.78764324,0.00032574,7]
[310078513,1704305439148,-1734.18515061,0.00032574,7]
[310078514,1704305439157,-409.425,0.00032581,2]
[310078516,1704305439167,-2251.0,0.00032581,2]
[310078518,1704305439176,-1026.0,0.00032581,2]
[310078520,1704305439186,-476.76,0.00032626,2]
[310078522,1704305439195,-174.85,0.00032629,2]
[310078524,1704305439205,-267.3,0.00032682,2]
[310078527,1704305439216,-37551.5975,0.00032776,3]
[310078528,1704305439228,-150.86287723,0.00032776,2]
[310078530,1704305439237,-809.99990919,0.00032776,4]
[310078532,1704305439246,-151.0,0.00032814,30]
[310078535,1704305439255,-1224.79856906,0.00032874,4]
[310078537,1704305439265,-500.0,0.00032876,2]
[310078538,1704305439274,-172.00936612,0.00032876,4]
[310078541,1704305439284,-500.0,0.00032876,2]
[310078543,1704305439293,-500.0,0.00032876,2]
[310078545,1704305439302,-500.0,0.00032876,2]
[310078547,1704305439311,-500.0,0.00032876,2]
[310078549,1704305439320,-500.0,0.00032876,2]
[310078551,1704305439330,-429.82846167,0.00032876,2]
[310078553,1704305439339,-500.0,0.00032876,2]
[310078555,1704305439348,-500.0,0.00032876,2]
[310078557,1704305439357,-500.0,0.00032876,2]
[310078559,1704305439367,-500.0,0.00032876,2]
[310078560,1704305439376,-500.0,0.00032876,2]
[310078563,1704305439386,-500.0,0.00032876,2]
[310078565,1704305439396,-500.0,0.00032876,2]
[310078566,1704305439406,-500.0,0.00032876,2]
[310078568,1704305439417,-500.0,0.00032876,2]
[310078570,1704305439426,-500.0,0.00032876,2]
[310078572,1704305439435,-500.0,0.00032876,2]
[310078574,1704305439444,-500.0,0.00032876,2]
[310078576,1704305439453,-500.0,0.00032876,2]
[310078578,1704305439464,-500.0,0.00032876,2]
[310078581,1704305439473,-500.0,0.00032876,2]
[310078582,1704305439482,-500.0,0.00032876,2]
[310078584,1704305439492,-641.15693841,0.00032876,2]